bitfinex/quotes_ETHUSD_20250213
["timestamp","ask_amount","ask_price","bid_price","bid_amount"]
[1739488578393,2.252,2673.5,2673.3,0.05419845]
[1739488578603,2.252,2673.5,2673.2,0.7747]
[1739488578954,2.252,2673.5,2673.4,0.05419845]
[1739488579135,2.252,2673.5,2673.2,0.7747]
[1739488579304,2.252,2673.5,2673.4,0.05419845]
[1739488579953,2.252,2673.5,2673.2,0.7747]
[1739488580101,2.252,2673.5,2673.4,0.05419845]
[1739488580305,2.252,2673.5,2673.2,0.7747]
[1739488580627,5.9926,2673.4,2672.9,8.97374032]
[1739488580829,6.3514,2673.3,2672.9,8.97374032]
[1739488581030,6.3514,2673.3,2672.9,5.23251032]
[1739488581453,2.6107,2673.3,2672.9,5.23251032]
[1739488581653,2.6107,2673.3,2672.9,8.97370032]
[1739488581947,6.35152,2673.3,2672.9,5.23251032]
[1739488582274,6.35152,2673.3,2672.9,8.97375032]
[1739488582457,2.252,2673.2,2673.1,3.74097]
[1739488583053,2.252,2673.4,2673.1,3.74097]
[1739488583222,2.252,2673.4,2673.0,3.74099]
[1739488583421,5.99258,2673.4,2673.0,3.74099]
[1739488583719,2.252,2673.4,2673.2,0.8224]
[1739488584137,5.99257,2673.4,2673.2,0.8224]
[1739488584447,5.99257,2673.4,2673.3,0.0543784]
[1739488584760,2.252,2673.4,2673.0,8.3044]
[1739488584902,2.252,2673.6,2673.1,3.74089]
[1739488585101,6.26228,2673.6,2673.2,3.74076]
[1739488585863,6.26228,2673.6,2673.3,0.0543784]
[1739488586091,5.99245,2673.5,2673.3,0.0543784]
[1739488586234,2.252,2673.3,2673.0,0.8224]
[1739488586862,2.252,2673.3,2673.0,4.5635]
[1739488587042,2.252,2673.3,2673.0,8.30452]
[1739488587270,2.252,2673.3,2673.0,4.56342]
[1739488587459,0.3587,2673.4,2673.2,3.7408]
[1739488587460,2.252,2673.4,2673.2,3.7408]
[1739488587659,2.252,2673.6,2673.3,3.74069]
[1739488588775,2.252,2673.6,2673.4,3.74047]
[1739488588943,2.252,2673.6,2673.3,0.7695]
[1739488589143,2.252,2673.6,2673.4,0.60020103]
[1739488589348,2.252,2673.6,2673.4,4.34074103]
[1739488590169,0.27,2674.0,2673.6,0.7695]
[1739488591167,2.522,2674.0,2673.6,0.7695]
[1739488591330,6.26171,2674.0,2673.6,0.7695]
[1739488591730,3.73997,2673.9,2673.6,0.7695]
[1739488591970,2.522,2674.0,2673.6,0.7695]
[1739488592268,5.992,2673.8,2673.4,0.7803]
[1739488593078,2.252,2673.8,2673.4,0.7803]
[1739488593234,2.252,2673.8,2673.4,5.49609003]
[1739488594260,2.252,2673.8,2673.4,10.72860035]
[1739488594781,3.73985,2673.9,2673.5,3.74041]
[1739488596170,2.522,2674.0,2673.5,3.74041]
[1739488596367,2.522,2674.0,2673.7,0.7802]
[1739488596569,2.252,2674.0,2673.7,4.52033]
[1739488597097,5.99144,2674.2,2673.7,0.7802]
[1739488597326,5.99144,2674.2,2673.8,3.73999]
[1739488597503,2.252,2674.2,2673.8,9.00989894]
[1739488597655,2.252,2674.2,2674.1,0.8067]
[1739488597863,2.252,2674.4,2674.1,4.54626]
[1739488598372,5.99116,2674.4,2674.1,0.8067]
[1739488598577,2.252,2674.4,2674.1,0.8067]
[1739488599497,2.252,2674.4,2674.2,0.05347887]
[1739488601132,2.252,2674.6,2674.3,3.73929]
[1739488601314,2.252,2674.6,2674.4,0.7556]
[1739488601642,2.252,2674.6,2674.4,0.8085583]
[1739488603075,2.252,2674.6,2674.4,4.5476983]
[1739488603713,2.252,2674.6,2674.5,3.73901]
[1739488603887,2.252,2674.8,2674.5,3.73901]
[1739488604284,5.99052,2674.9,2674.6,0.05218221]
[1739488604484,9.72908,2674.9,2674.6,0.05218221]
[1739488604685,3.73873,2674.7,2674.6,0.05218221]
[1739488604902,3.73873,2674.7,2674.4,0.7556]
[1739488605101,3.73873,2674.7,2674.6,0.05202137]
[1739488605724,3.73873,2674.7,2674.4,0.7556]
[1739488605884,3.73873,2674.7,2674.6,0.05202137]
[1739488606420,2.252,2674.7,2674.4,0.7556]
[1739488606626,2.252,2674.5,2674.3,5.23251032]
[1739488607138,5.99101,2674.5,2674.3,5.23251032]
[1739488607282,2.252,2674.5,2674.3,5.23251032]
[1739488607608,2.252,2674.6,2674.3,8.97175032]
[1739488608118,2.252,2674.6,2674.3,5.23251032]
[1739488608324,5.99102,2674.5,2674.3,5.23251032]
[1739488609180,2.252,2674.5,2674.1,7.51618]
[1739488609427,2.252,2674.5,2674.2,3.7394]
[1739488609620,5.99075,2674.7,2674.2,3.7394]
[1739488609787,2.252,2674.5,2674.2,3.7394]
[1739488610186,2.252,2674.5,2674.1,9.16676802]
[1739488610726,2.252,2674.5,2674.2,3.73942]
[1739488611683,5.99107,2674.5,2674.1,5.42721802]
[1739488611884,5.99107,2674.5,2674.1,9.16677802]
[1739488612234,5.99107,2674.5,2674.1,7.51626]
[1739488612596,5.99107,2674.5,2674.1,3.7767]
[1739488612804,2.252,2674.4,2674.0,5.23251032]
[1739488613429,5.99137,2674.3,2674.0,5.23251032]
[1739488614531,5.99137,2674.3,2674.1,0.050141]
[1739488614731,5.99143,2674.2,2674.1,0.050141]
[1739488615193,6.35013,2674.2,2674.1,0.050141]
[1739488616937,7.18513,2674.2,2674.1,0.050141]
[1739488617236,2.802,2673.9,2673.4,6.00431032]
[1739488617535,2.252,2673.7,2673.4,6.00431032]
[1739488617831,2.252,2673.7,2673.5,0.0511157]
[1739488618386,2.252,2673.8,2673.5,0.0511157]
[1739488618626,2.252,2673.8,2673.5,3.7914557]
[1739488619393,2.252,2673.9,2673.5,3.7914557]
[1739488619730,2.252,2673.9,2673.6,3.74024]
[1739488619928,2.252,2673.9,2673.5,3.7914057]
[1739488620246,2.252,2673.9,2673.5,4.7683601]
[1739488620450,2.252,2673.9,2673.6,0.05138073]
[1739488621831,2.252,2673.9,2673.7,3.74005]
[1739488622014,2.252,2673.9,2673.7,0.05138073]
[1739488624736,6.35069,2673.8,2673.7,0.05138073]
[1739488624906,6.90819,2673.8,2673.7,0.05138073]
[1739488625105,2.252,2673.5,2673.4,5.23251032]
[1739488625737,5.99241,2673.5,2673.4,5.23251032]
[1739488627044,5.99241,2673.5,2673.0,3.741]
[1739488627045,5.99269,2673.3,2673.0,6.05901032]
[1739488627396,5.99307,2673.1,2672.8,6.05901032]
[1739488627536,5.99307,2673.1,2672.8,5.23251032]
[1739488628109,2.252,2672.9,2672.8,5.23251032]
[1739488629411,2.252,2672.9,2672.8,5.28275029]
[1739488632706,3.741,2673.1,2672.8,6.80717644]
[1739488632707,2.252,2673.1,2672.8,6.80717644]
[1739488632912,0.54562673,2673.5,2672.8,6.80717644]
[1739488632913,5.9927,2673.3,2672.8,6.80717644]
[1739488633408,9.73348,2673.3,2672.8,6.80717644]
[1739488633614,2.252,2673.3,2672.8,6.80717644]
[1739488633972,5.99275,2673.3,2672.9,1.05485864]
[1739488634533,5.99275,2673.3,2673.0,0.05023997]
[1739488634970,2.252,2673.3,2673.0,0.05023997]
[1739488636210,2.252,2673.4,2673.0,0.05023997]
[1739488636501,5.99264,2673.4,2673.1,1.25842786]
[1739488636631,2.252,2673.4,2673.1,1.25842786]
[1739488636831,2.252,2673.4,2673.2,0.0505428]
[1739488637260,2.252,2673.4,2673.2,3.7913028]
[1739488637462,2.252,2673.7,2673.2,3.7913028]
[1739488637891,2.252,2673.5,2673.2,0.0505428]
[1739488638292,2.252,2673.5,2673.2,3.7913328]
[1739488638635,1.1787,2673.8,2673.3,3.74055]
[1739488638841,2.249,2673.7,2673.4,3.74048]
[1739488639042,2.249,2673.9,2673.5,0.81664811]
[1739488639346,2.249,2673.9,2673.5,1.27236092]
[1739488639694,2.249,2673.9,2673.8,3.73999]
[1739488640057,0.27,2674.1,2673.8,3.79040972]
[1739488640058,2.249,2674.0,2673.8,3.79040972]
[1739488642462,2.249,2674.3,2674.0,3.73968]
[1739488642617,0.3587,2674.6,2674.3,3.73927]
[1739488642800,0.3587,2674.6,2674.1,3.73944]
[1739488642972,3.73901,2674.5,2674.4,0.04996561]
[1739488643313,3.73901,2674.5,2674.0,3.73971]
[1739488643518,6.34668,2674.6,2674.4,0.0497859]
[1739488643726,6.34668,2674.6,2674.1,3.73954]
[1739488643930,6.89668,2674.6,2674.5,0.0497859]
[1739488644226,6.34657,2674.6,2674.5,0.0497859]
[1739488644701,2.6077,2674.6,2674.1,3.73946]
[1739488645231,2.6077,2674.6,2674.2,0.0497859]
[1739488645526,6.34658,2674.6,2674.2,0.0497859]
[1739488646731,2.6077,2674.6,2674.2,0.0497859]
[1739488647027,2.6077,2674.6,2674.0,3.7396]
[1739488647231,6.34666,2674.6,2674.1,4.2388559]
[1739488647432,0.27,2674.7,2674.2,0.758]
[1739488647433,2.249,2674.7,2674.2,0.758]
[1739488647628,2.249,2674.7,2674.5,3.73901]
[1739488647934,2.249,2674.7,2674.6,0.8077859]
[1739488648434,2.249,2674.8,2674.6,0.8077859]
[1739488648647,7.97550302,2675.1,2674.6,0.8077859]
[1739488648811,2.249,2675.0,2674.7,3.73869]
[1739488648991,2.249,2675.0,2674.8,0.05157603]
[1739488649329,2.249,2675.0,2674.7,3.73869]
[1739488649629,5.98718,2675.1,2674.7,3.73869]
[1739488650039,2.249,2675.1,2674.8,0.05157603]
[1739488650245,6.34566,2675.3,2674.8,3.7385]
[1739488650418,6.25696,2675.3,2674.9,0.05157603]
[1739488650800,2.519,2675.3,2674.9,3.79001603]
[1739488651044,2.519,2675.3,2675.0,0.7777]
[1739488651342,3.7379,2675.3,2675.1,0.0512095]
[1739488653046,3.73803,2675.2,2675.1,0.0512095]
[1739488653361,5.98703,2675.2,2675.1,0.0512095]
[1739488653666,5.98703,2675.2,2674.7,0.8167]
[1739488653831,3.73831,2675.1,2674.7,0.8167]
[1739488654031,3.73834,2675.0,2674.7,0.8167]
[1739488655426,3.73853,2674.9,2674.7,0.8167]
[1739488655629,2.249,2674.9,2674.4,0.7949]
[1739488655846,3.73867,2674.8,2674.4,2.04932203]
[1739488656044,3.73875,2674.7,2674.4,0.7949]
[1739488656271,3.73887,2674.6,2674.3,5.23251032]
[1739488656745,0.3587,2674.6,2674.3,5.23251032]
[1739488656922,3.73915,2674.4,2674.3,5.23251032]
[1739488657328,2.249,2674.4,2673.9,0.8239]
[1739488657560,3.73957,2674.2,2673.8,5.23251032]
[1739488657762,3.7397,2674.1,2673.7,0.8314]
[1739488657947,5.98857,2674.2,2673.7,5.87527731]
[1739488658268,5.98824,2674.4,2673.9,3.73983]
[1739488658641,3.73941,2674.3,2673.8,3.73992]
[1739488658831,5.98824,2674.4,2673.7,5.87520731]
[1739488659025,2.249,2674.2,2673.8,3.73997]
[1739488659352,9.7275,2674.4,2673.8,3.73997]
[1739488659553,5.98824,2674.4,2673.9,0.05190193]
[1739488659766,5.98823,2674.4,2673.9,3.79175193]
[1739488660069,3.73897,2674.6,2674.0,4.51723]
[1739488660268,2.249,2674.6,2674.2,3.73941]
[1739488660471,0.27,2674.7,2674.3,3.73923]
[1739488660669,0.27,2674.7,2674.5,3.73897]
[1739488661051,0.27,2674.7,2674.6,0.05190193]
[1739488661252,0.27,2674.7,2674.4,4.51675]
[1739488661434,0.27,2674.7,2674.5,0.05190193]
[1739488662062,2.519,2674.7,2674.5,0.05190193]
[1739488662253,5.98787,2674.6,2674.5,0.05190193]
[1739488663076,5.98787,2674.6,2674.5,0.05170845]
[1739488663435,5.98787,2674.6,2674.1,4.51717]
[1739488663635,5.98787,2674.6,2674.2,0.05170845]
[1739488663941,3.7391,2674.5,2674.2,0.05170845]
[1739488664146,5.9881,2674.5,2674.2,0.05170845]
[1739488664700,2.249,2674.5,2674.2,0.05170845]
[1739488665552,2.249,2674.6,2674.3,3.73929]
[1739488665998,2.249,2674.6,2674.4,0.05173899]
[1739488666410,5.98796,2674.6,2674.4,0.05173899]
[1739488666718,5.98796,2674.6,2674.2,8.97192032]
[1739488666891,5.98796,2674.6,2674.5,0.05173899]
[1739488667057,5.98796,2674.6,2674.2,5.23251032]
[1739488667258,5.98809,2674.5,2674.3,0.05173899]
[1739488667573,5.98809,2674.5,2674.2,5.23251032]
[1739488667790,5.98809,2674.5,2674.4,0.05173899]
[1739488667996,5.98809,2674.5,2674.2,5.23251032]
[1739488668198,5.98809,2674.5,2674.4,0.05173899]
[1739488668516,2.249,2674.5,2674.4,0.05173899]
[1739488668728,2.249,2674.5,2674.2,5.23251032]
[1739488668927,5.98829,2674.3,2674.2,5.23251032]
[1739488671736,5.98829,2674.3,2673.6,8.29354]
[1739488671737,2.249,2674.1,2673.7,3.74003]
[1739488671909,2.249,2674.1,2673.7,5.43818531]
[1739488672318,3.73929,2674.3,2673.9,3.73979]
[1739488672486,3.73917,2674.4,2674.0,0.8046]
[1739488672692,4.09764,2674.6,2674.1,3.7395]
[1739488673318,4.00875,2674.7,2674.2,3.73941]
[1739488673516,2.249,2674.6,2674.2,8.97192032]
[1739488674089,2.249,2674.7,2674.3,3.73919]
[1739488674286,2.249,2674.7,2674.4,0.8046]
[1739488674538,2.6077,2674.9,2674.5,3.73889]
[1739488674835,2.249,2674.9,2674.6,3.7388]
[1739488675129,5.98749,2674.9,2674.4,2.16113108]
[1739488675335,2.249,2674.9,2674.7,0.04960045]
[1739488675630,3.7386,2674.8,2674.5,0.21611311]
[1739488677316,3.7386,2674.8,2674.4,4.54375]
[1739488677708,3.7386,2674.8,2674.4,0.8046]
[1739488678240,3.73853,2674.9,2674.4,4.54368]
[1739488678895,2.249,2674.6,2674.2,6.02301032]
[1739488679107,5.98798,2674.6,2674.2,6.02301032]
[1739488679738,3.73915,2674.4,2674.2,6.02301032]
[1739488679896,3.73915,2674.4,2674.2,5.23251032]
[1739488680648,3.73929,2674.3,2674.2,5.23251032]
[1739488680940,5.98829,2674.3,2674.2,5.23251032]
[1739488681335,2.249,2674.4,2674.2,5.23251032]
[1739488681850,5.98816,2674.4,2674.2,5.23251032]
[1739488682344,5.98829,2674.3,2674.2,5.23251032]
[1739488682827,5.98865,2674.1,2673.9,5.23251032]
[1739488683138,5.98865,2674.1,2673.8,0.7817]
[1739488684950,2.249,2674.1,2673.7,10.52272535]
[1739488685568,2.249,2674.1,2673.7,14.26275535]
[1739488685713,2.249,2674.1,2673.7,10.52268535]
[1739488686762,5.98866,2674.1,2673.7,6.78265535]
[1739488687713,2.249,2674.1,2673.7,6.78265535]
[1739488688076,2.249,2674.1,2673.7,10.52269535]
[1739488688409,2.249,2674.1,2673.8,3.73997]
[1739488688707,2.249,2674.3,2674.0,3.73971]
[1739488688914,2.249,2674.3,2674.1,3.73952]
[1739488689321,2.249,2674.3,2674.2,0.04971239]
[1739488689524,0.27,2674.5,2674.2,0.04971239]
[1739488690056,2.249,2674.4,2674.2,0.04971239]
[1739488691133,2.249,2674.5,2674.2,3.78904239]
[1739488691980,2.249,2674.5,2674.2,0.88307363]
[1739488692184,2.249,2674.7,2674.5,3.73888]
[1739488692773,2.249,2674.9,2674.6,0.04972256]
[1739488693130,2.249,2674.7,2674.6,0.04972256]
[1739488693398,5.9878,2674.7,2674.3,0.825]
[1739488693690,2.249,2674.7,2674.6,0.04972256]
[1739488693905,2.249,2674.7,2674.3,4.56427]
[1739488694108,2.249,2674.7,2674.4,0.04972256]
[1739488694303,2.249,2674.7,2674.4,3.73913]
[1739488694483,2.249,2674.7,2674.4,3.78885256]
[1739488694865,2.249,2674.7,2674.4,3.78887256]
[1739488695553,2.249,2674.7,2674.4,0.04972256]
[1739488697405,2.249,2674.9,2674.4,9.48274314]
[1739488697612,2.249,2674.9,2674.5,3.73895]
[1739488698056,2.249,2674.9,2674.6,0.04951906]
[1739488699371,2.249,2674.9,2674.6,3.78829906]
[1739488699570,2.249,2675.0,2674.7,0.8258]
[1739488699912,2.249,2675.0,2674.7,0.87530889]
[1739488700149,2.249,2675.1,2674.7,0.87530889]
[1739488700310,3.73832,2675.0,2674.7,0.87530889]
[1739488701013,2.249,2675.1,2674.7,4.61402889]
[1739488701300,2.249,2675.1,2674.8,3.73859]
[1739488702098,2.249,2675.1,2674.9,0.04950889]
[1739488702923,2.249,2675.2,2674.9,0.04950889]
[1739488703132,2.249,2675.2,2674.9,3.78782889]
[1739488703274,2.249,2675.2,2674.9,5.14630181]
[1739488703470,2.249,2675.4,2675.1,3.73817]
[1739488703700,5.98684,2675.4,2675.1,0.83]
[1739488704027,3.73789,2675.3,2675.2,0.04897981]
[1739488705028,5.98678,2675.4,2675.2,0.04897981]
[1739488706574,5.98678,2675.4,2675.3,0.04872548]
[1739488706736,5.98678,2675.4,2675.0,3.73829]
[1739488706934,5.98678,2675.4,2675.3,0.04872548]
[1739488707272,5.98678,2675.4,2675.0,3.73829]
[1739488707467,5.98678,2675.4,2675.3,0.04872548]
[1739488707613,5.98678,2675.4,2675.0,3.73829]
[1739488707816,5.98678,2675.4,2675.3,0.04872548]
[1739488708078,5.98678,2675.4,2675.0,3.73829]
[1739488708380,2.249,2675.4,2675.0,4.568975]
[1739488708514,2.249,2675.6,2675.3,0.8322]
[1739488709313,2.249,2675.6,2675.3,4.57008]
[1739488709655,2.249,2675.7,2675.4,0.04872548]
[1739488710057,2.249,2675.7,2675.4,3.7377]
[1739488710231,2.249,2675.7,2675.4,0.45699]
[1739488710563,5.98634,2675.7,2675.5,0.04872548]
[1739488711262,5.9862,2675.8,2675.5,0.04872548]
[1739488712460,9.72351,2675.8,2675.5,0.04872548]
[1739488712644,5.9862,2675.8,2675.5,0.04872548]
[1739488712819,5.9862,2675.8,2675.3,4.57008]
[1739488713164,5.9862,2675.8,2675.4,3.7377]
[1739488713456,5.9862,2675.8,2675.4,3.78642548]
[1739488714225,2.249,2675.6,2675.4,0.04872548]
[1739488715057,2.249,2675.6,2675.4,3.78642548]
[1739488715356,2.249,2675.7,2675.4,3.78642548]
[1739488716414,3.73722,2675.8,2675.4,5.22841876]
[1739488716415,5.98621,2675.8,2675.4,5.22841876]
[1739488716811,2.249,2675.8,2675.4,5.22841876]
[1739488717256,2.249,2675.8,2675.5,3.73761]
[1739488717762,2.249,2675.9,2675.6,0.04872548]
[1739488717963,2.249,2675.8,2675.6,0.04872548]
[1739488718259,2.249,2675.8,2675.7,1.17123355]
[1739488718449,2.249,2675.8,2675.7,0.7926]
[1739488718657,2.249,2675.8,2675.7,0.84008478]
[1739488718834,2.249,2675.9,2675.7,0.84008478]
[1739488719158,5.98612,2675.9,2675.7,0.84008478]
[1739488719363,2.249,2675.8,2675.7,0.84008478]
[1739488719564,5.9859,2676.1,2675.7,0.84008478]
[1739488719938,5.9859,2676.1,2675.8,0.45774648]
[1739488720145,3.73695,2676.0,2675.8,0.45774648]
[1739488720354,3.73695,2676.0,2675.9,0.04748478]
[1739488720578,3.73695,2676.0,2675.7,0.7926]
[1739488720723,5.9859,2676.1,2675.9,0.04748478]
[1739488721049,3.73692,2676.0,2675.7,0.7926]
[1739488721415,3.73695,2676.0,2675.7,0.7926]
[1739488721885,5.9859,2676.1,2675.7,0.7926]
[1739488722023,3.73695,2676.0,2675.7,0.7926]
[1739488722223,3.73695,2676.0,2675.7,1.2456]
[1739488723339,5.9858,2676.1,2675.7,4.98293]
[1739488723667,5.9858,2676.1,2675.7,4.98287]
[1739488723851,3.73694,2676.0,2675.7,1.2456]
[1739488724648,3.96721302,2676.3,2675.4,3.73764]
[1739488724649,5.9862,2675.8,2675.4,0.7748]
[1739488724865,2.249,2675.8,2675.4,8.25018]
[1739488725318,2.249,2675.8,2675.4,0.7748]
[1739488725519,3.73743,2675.7,2675.4,0.7748]
[1739488725723,2.249,2675.6,2675.3,5.23251032]
[1739488725939,3.73767,2675.5,2675.3,5.23251032]
[1739488726137,7.47536,2675.5,2675.3,5.23251032]
[1739488726358,7.47542,2675.5,2675.3,5.23251032]
[1739488726562,2.249,2675.4,2675.3,5.23251032]
[1739488726766,5.98675,2675.4,2675.3,5.23251032]
[1739488726965,2.249,2675.4,2675.3,5.23251032]
[1739488727979,5.98675,2675.4,2675.3,5.23251032]
[1739488728476,2.249,2675.4,2675.3,5.23251032]
[1739488728628,2.249,2675.6,2675.3,5.23251032]
[1739488728977,2.249,2675.6,2675.4,3.73775]
[1739488729378,2.249,2675.6,2675.3,6.03011032]
[1739488729584,2.249,2675.6,2675.4,3.73763]
[1739488729748,0.19093198,2675.7,2675.4,3.73763]
[1739488729749,2.43993198,2675.7,2675.4,3.73764]
[1739488729953,2.249,2675.7,2675.5,3.73753]
[1739488730782,2.249,2675.7,2675.3,10.37091135]
[1739488731081,2.249,2675.8,2675.4,4.77474114]
[1739488731375,2.43927688,2675.8,2675.4,4.77474114]
[1739488731593,2.43927688,2675.8,2675.5,3.7376]
[1739488732378,2.43927688,2675.8,2675.6,3.73741]
[1739488732580,2.249,2676.0,2675.7,4.53873]
[1739488733281,2.249,2676.0,2675.7,0.8014]
[1739488733482,5.98593,2676.0,2675.7,0.8014]
[1739488734351,5.98593,2676.0,2675.8,0.04756611]
[1739488734677,9.72294,2676.0,2675.8,0.04756611]
[1739488734978,5.98593,2676.0,2675.9,0.04756611]
[1739488735361,5.98593,2676.0,2675.7,0.8014]
[1739488735566,5.98593,2676.0,2675.9,0.04756611]
[1739488735887,5.98593,2676.0,2675.7,0.8014]
[1739488736043,5.98593,2676.0,2675.9,0.04756611]
[1739488736245,5.98593,2676.0,2675.7,0.8014]
[1739488736478,5.98593,2676.0,2675.9,0.04756611]
[1739488736680,9.72296,2676.0,2675.7,0.8014]
[1739488736886,9.72296,2676.0,2675.9,0.04756611]
[1739488737057,5.98593,2676.0,2675.7,0.8014]
[1739488737258,5.98593,2676.0,2675.9,0.04756611]
[1739488737465,5.98608,2675.9,2675.7,0.8014]
[1739488737693,5.98608,2675.9,2675.7,1.2553]
[1739488737984,2.249,2675.9,2675.7,1.2553]
[1739488738182,2.249,2675.9,2675.5,0.7954]
[1739488738336,3.73726,2675.8,2675.5,0.7954]
[1739488738545,5.98626,2675.8,2675.4,1.03709114]
[1739488738797,5.98626,2675.8,2675.4,4.77483114]
[1739488739342,2.249,2675.8,2675.4,4.77477114]
[1739488739687,5.98631,2675.8,2675.4,1.03709114]
[1739488739988,2.249,2675.8,2675.4,4.77479114]
[1739488740306,2.249,2675.8,2675.5,5.25189325]
[1739488740940,2.249,2676.0,2675.6,4.51424]
[1739488741146,2.249,2676.0,2675.7,3.73727]
[1739488741363,2.249,2676.0,2675.6,0.7768]
[1739488741587,2.249,2676.0,2675.6,4.51425]
[1739488741788,2.249,2676.0,2675.7,0.97661333]
[1739488741989,5.98598,2676.0,2675.7,0.97661333]
[1739488742148,5.98598,2676.0,2675.6,0.7768]
[1739488742149,3.73714,2675.9,2675.6,0.7768]
[1739488742485,3.73727,2675.8,2675.3,8.97033032]
[1739488742783,2.249,2675.8,2675.4,3.73767]
[1739488743488,2.249,2675.8,2675.3,9.74383032]
[1739488743782,5.98627,2675.8,2675.4,0.97438303]
[1739488744001,5.98627,2675.8,2675.4,4.71208303]
[1739488744002,2.249,2675.8,2675.4,4.71208303]
[1739488744330,2.249,2676.2,2675.7,3.73721]
[1739488744464,2.249,2676.2,2675.8,1.187021]
[1739488745362,2.249,2676.2,2675.8,4.924171]
[1739488745564,5.98573,2676.2,2675.8,1.187021]
[1739488745774,5.98573,2676.2,2675.8,0.8133]
[1739488746010,3.73678,2676.1,2675.8,0.8133]
[1739488746596,3.73685,2676.1,2675.8,0.8133]
[1739488746914,2.249,2675.9,2675.5,0.8297]
[1739488747078,2.249,2675.9,2675.5,4.56727]
[1739488747271,2.249,2675.9,2675.5,8.30484]
[1739488747470,2.249,2675.9,2675.5,9.65855803]
[1739488747863,2.249,2675.9,2675.5,5.92098803]
[1739488748826,3.73724,2675.8,2675.5,0.8297]
[1739488749131,2.249,2675.6,2675.3,6.06141032]
[1739488749288,5.98663,2675.5,2675.3,5.23251032]
[1739488749632,5.98663,2675.5,2675.4,0.04689513]
[1739488749833,6.34533,2675.5,2675.4,0.04689513]
[1739488750178,5.98711,2675.2,2675.0,5.23251032]
[1739488750429,5.98717,2675.1,2674.7,5.23251032]
[1739488750566,6.34587,2675.1,2674.7,6.21253035]
[1739488751086,2.6077,2675.1,2674.7,6.21253035]
[1739488751954,6.34589,2675.1,2674.7,6.21253035]
[1739488752094,3.7384,2675.0,2674.7,5.23251032]
[1739488752290,6.3459,2675.1,2674.7,5.23251032]
[1739488752494,2.6077,2675.1,2674.7,5.23251032]
[1739488754247,2.6077,2675.1,2674.5,3.73901]
[1739488754248,6.34589,2675.1,2674.5,3.73901]
[1739488754653,3.73832,2675.0,2674.5,3.73901]
[1739488754812,2.249,2674.9,2674.5,4.56663]
[1739488755019,2.249,2674.9,2674.5,3.73894]
[1739488755513,2.249,2674.9,2674.4,4.53714]
[1739488756558,3.73868,2674.8,2674.2,5.23251032]
[1739488756854,0.3587,2674.7,2674.2,9.74514032]
[1739488757154,0.3587,2674.7,2674.2,11.09360235]
[1739488757336,4.09747,2674.7,2674.2,7.35417235]
[1739488757548,3.73891,2674.6,2674.2,7.35417235]
[1739488758458,0.3587,2674.7,2674.2,7.35417235]
[1739488758616,2.249,2674.9,2674.3,3.73919]
[1739488758964,0.269,2674.9,2674.6,0.8256]
[1739488759203,0.269,2674.9,2674.7,3.73865]
[1739488760027,4.09682,2675.2,2674.7,3.73862]
[1739488760028,2.249,2675.2,2674.7,3.73862]
[1739488760282,2.518,2675.2,2674.8,3.73852]
[1739488760432,0.269,2675.2,2674.8,3.73852]
[1739488760889,4.00714,2675.2,2674.7,9.43132106]
[1739488761291,6.25614,2675.2,2674.7,13.16998106]
[1739488761590,3.73824,2675.1,2674.7,9.43140106]
[1739488761730,2.249,2675.0,2674.7,9.43140106]
[1739488763087,2.249,2675.2,2674.9,3.73839]
[1739488763268,2.249,2675.2,2674.8,4.34689694]
[1739488763475,2.249,2675.2,2674.9,3.73841]
[1739488764300,2.249,2675.2,2674.8,4.34689694]
[1739488764431,2.249,2675.2,2675.0,0.04841023]
[1739488764631,2.249,2675.2,2674.8,4.34689694]
[1739488764831,2.249,2675.2,2675.1,0.04841023]
[1739488765033,5.98707,2675.2,2674.8,0.60838694]
[1739488765232,5.98707,2675.2,2675.1,0.04841023]
[1739488765474,5.98707,2675.2,2674.8,4.34696694]
[1739488765647,5.98707,2675.2,2675.1,0.04861361]
[1739488765863,5.98707,2675.2,2674.8,4.34696694]
[1739488766169,2.249,2675.2,2674.9,4.69626773]
[1739488766371,2.249,2675.2,2675.0,0.04861361]
[1739488767086,2.249,2675.3,2675.0,0.04861361]
[1739488767277,3.79913943,2675.6,2675.0,0.04861361]
[1739488767278,2.518,2675.5,2675.1,8.27609]
[1739488767477,3.73782,2675.4,2675.2,0.83247036]
[1739488767774,3.73782,2675.4,2675.2,0.04830846]
[1739488768574,2.249,2675.5,2675.2,0.04830846]
[1739488768772,2.518,2675.7,2675.3,3.73779]
[1739488769078,2.518,2675.7,2675.4,3.78585507]
[1739488769278,2.70532964,2675.7,2675.4,3.78585507]
[1739488769773,0.3587,2675.8,2675.5,4.51839]
[1739488770077,2.249,2675.8,2675.6,0.04778987]
[1739488770274,6.34503,2675.7,2675.6,0.04778987]
[1739488770465,3.73763,2675.5,2675.2,6.01341032]
[1739488770637,3.73763,2675.5,2675.2,5.23251032]
[1739488770972,3.73784,2675.4,2675.2,5.23251032]
[1739488771147,3.73763,2675.5,2675.2,5.23251032]
[1739488771477,5.98648,2675.6,2675.2,9.56993135]
[1739488771878,3.73772,2675.5,2675.2,5.83195135]
[1739488772080,5.98677,2675.4,2675.2,5.23251032]
[1739488772758,2.249,2675.4,2675.2,5.23251032]
[1739488772963,5.98678,2675.4,2675.2,5.23251032]
[1739488773273,5.98689,2675.3,2675.2,5.23251032]
[1739488773476,6.34559,2675.3,2675.2,5.23251032]
[1739488774351,2.6077,2675.3,2675.2,5.23251032]
[1739488774779,6.34559,2675.3,2675.2,5.23251032]